bitfinex/quotes_SOLUSD_20250106
["timestamp","ask_amount","ask_price","bid_price","bid_amount"]
[1736187404139,2.22,218.89,218.8,8.82423177]
[1736187404438,8.82423177,218.88,218.81,8.82423177]
[1736187404643,8.82423177,218.87,218.8,8.82423177]
[1736187404841,8.82423177,218.86,218.79,8.82423177]
[1736187405355,8.82423177,218.85,218.79,8.82423177]
[1736187406256,8.82423177,218.86,218.79,8.82423177]
[1736187406836,8.82423177,218.84,218.77,8.82423177]
[1736187407038,8.82423177,218.87,218.8,8.82423177]
[1736187409178,22.2779954,218.9,218.8,10.39033177]
[1736187409344,2.22,218.86,218.8,10.39033177]
[1736187409531,11.04423177,218.86,218.8,10.39033177]
[1736187410769,11.04423177,218.86,218.8,1.5661]
[1736187410983,8.82423177,218.81,218.75,1.5495]
[1736187411199,8.82423177,218.8,218.75,1.5495]
[1736187411949,8.82423177,218.83,218.76,8.82423177]
[1736187412219,8.82423177,218.83,218.77,8.82423177]
[1736187412368,8.82423177,218.83,218.76,8.82423177]
[1736187412980,8.82423177,218.81,218.75,1.5495]
[1736187413147,8.82423177,218.79,218.72,8.82423177]
[1736187413349,11.04423177,218.78,218.72,8.82423177]
[1736187413544,8.82423177,218.77,218.71,8.82423177]
[1736187414755,8.82423177,218.75,218.7,1.515]
[1736187414952,8.82423177,218.74,218.68,8.82423177]
[1736187415164,8.82423177,218.76,218.7,8.82423177]
[1736187415796,8.82423177,218.77,218.7,8.82423177]
[1736187417481,11.04423177,218.78,218.71,8.82423177]
[1736187418154,2.22,218.78,218.68,35.29692708]
[1736187418357,2.22,218.78,218.75,8.82423177]
[1736187419817,2.22,218.78,218.74,8.82423177]
[1736187419980,2.22,218.78,218.73,10.44503177]
[1736187420521,8.82423177,218.77,218.7,8.82423177]
[1736187421221,2.22,218.78,218.68,1.5492]
[1736187421222,8.82423177,218.74,218.68,1.5492]
[1736187421510,8.82423177,218.74,218.68,10.37343177]
[1736187421712,8.82423177,218.74,218.68,1.5492]
[1736187422886,8.82423177,218.74,218.68,10.37343177]
[1736187424788,8.82423177,218.75,218.69,8.82423177]
[1736187425630,28.82423177,218.77,218.71,8.82423177]
[1736187426343,20.0,218.8,218.73,8.82423177]
[1736187426543,11.04423177,218.79,218.73,8.82423177]
[1736187426830,2.22,218.79,218.72,8.82423177]
[1736187427034,11.04423177,218.79,218.73,8.82423177]
[1736187428016,2.22,218.79,218.73,8.82423177]
[1736187428530,11.4242,218.84,218.68,36.84612708]
[1736187428531,2.22,218.78,218.75,8.82423177]
[1736187429114,2.22,218.78,218.74,8.82423177]
[1736187430237,2.22,218.78,218.73,8.82423177]
[1736187430412,2.22,218.78,218.72,8.82423177]
[1736187430741,8.82423177,218.77,218.7,8.82423177]
[1736187430901,11.04423177,218.78,218.72,8.82423177]
[1736187431109,2.22,218.78,218.73,8.82423177]
[1736187431739,2.22,218.78,218.72,8.82423177]
[1736187432037,2.22,218.78,218.73,8.82423177]
[1736187432255,11.04423177,218.78,218.72,8.82423177]
[1736187432826,8.82423177,218.79,218.72,8.82423177]
[1736187433120,2.22,218.77,218.72,8.82423177]
[1736187433508,2.22,218.76,218.72,8.82423177]
[1736187434115,2.22,218.76,218.73,8.82423177]
[1736187434545,2.22,218.76,218.72,8.82423177]
[1736187434712,2.22,218.76,218.71,8.82423177]
[1736187435208,2.22,218.76,218.69,8.82423177]
[1736187435209,11.04423177,218.76,218.69,8.82423177]
[1736187435743,8.82423177,218.75,218.68,10.37343177]
[1736187438445,11.04423177,218.76,218.69,8.82423177]
[1736187439645,8.82423177,218.75,218.68,10.37343177]
[1736187439846,8.82423177,218.71,218.63,1.5234]
[1736187440021,8.82423177,218.71,218.64,8.82423177]
[1736187440526,8.82423177,218.7,218.63,1.5234]
[1736187440726,8.82423177,218.69,218.6,6.2396]
[1736187441045,8.82423177,218.67,218.58,12.9605]
[1736187441219,2.2,218.66,218.6,8.82423177]
[1736187442145,2.2,218.66,218.58,12.9605]
[1736187442146,11.02423177,218.66,218.59,8.82423177]
[1736187443043,2.2,218.66,218.6,8.82423177]
[1736187443236,2.2,218.66,218.61,8.82423177]
[1736187444352,2.2,218.66,218.6,8.82423177]
[1736187444722,11.02423177,218.66,218.59,8.82423177]
[1736187444929,8.82423177,218.65,218.59,8.82423177]
[1736187445851,8.82423177,218.63,218.57,8.82423177]
[1736187446224,8.82423177,218.64,218.58,8.82423177]
[1736187446437,8.82423177,218.63,218.54,23.22894007]
[1736187446637,8.82423177,218.63,218.57,8.82423177]
[1736187446853,8.82423177,218.64,218.58,8.82423177]
[1736187447738,8.82423177,218.65,218.59,8.82423177]
[1736187447942,11.02423177,218.66,218.6,8.82423177]
[1736187448336,11.02423177,218.66,218.59,8.82423177]
[1736187448852,8.82423177,218.65,218.59,8.82423177]
[1736187449153,8.82423177,218.65,218.58,8.82423177]
[1736187449648,8.82423177,218.64,218.58,8.82423177]
[1736187449854,8.82423177,218.61,218.53,1.5426]
[1736187450152,8.82423177,218.61,218.55,8.82423177]
[1736187450353,8.82423177,218.6,218.54,8.82423177]
[1736187451725,8.82423177,218.61,218.55,8.82423177]
[1736187452041,8.82423177,218.63,218.56,8.82423177]
[1736187452267,8.82423177,218.6,218.53,30.36683177]
[1736187452745,8.82423177,218.61,218.54,8.82423177]
[1736187453453,8.82423177,218.61,218.55,8.82423177]
[1736187454155,8.82423177,218.61,218.54,8.82423177]
[1736187457952,8.82423177,218.61,218.55,8.82423177]
[1736187458531,8.82423177,218.61,218.54,8.82423177]
[1736187459456,8.82423177,218.59,218.53,1.5426]
[1736187459629,11.02423177,218.58,218.51,8.82423177]
[1736187459833,2.2,218.57,218.51,8.82423177]
[1736187460063,2.2,218.57,218.52,8.82423177]
[1736187460262,2.2,218.57,218.53,8.82423177]
[1736187461666,2.2,218.57,218.52,8.82423177]
[1736187461844,2.2,218.57,218.53,8.82423177]
[1736187462288,2.2,218.57,218.54,8.82423177]
[1736187462461,2.2,218.57,218.55,8.82423177]
[1736187462641,2.2,218.57,218.56,8.82423177]
[1736187462838,8.82423177,218.63,218.56,8.82423177]
[1736187463141,2.22,218.62,218.57,8.82423177]
[1736187463340,2.22,218.61,218.57,8.82423177]
[1736187463542,28.82423177,218.64,218.57,8.82423177]
[1736187463746,22.22,218.63,218.59,8.82423177]
[1736187464142,2.22,218.63,218.61,8.82423177]
[1736187464638,2.22,218.63,218.57,0.5347]
[1736187464842,2.22,218.63,218.59,8.82423177]
[1736187465043,2.22,218.63,218.57,9.35893177]
[1736187465254,11.04423177,218.63,218.57,8.82423177]
[1736187466268,11.04423177,218.63,218.56,8.82423177]
[1736187466469,2.22,218.63,218.57,8.82423177]
[1736187467156,2.22,218.63,218.58,8.82423177]
[1736187467760,2.22,218.63,218.59,8.82423177]
[1736187468058,2.22,218.63,218.61,8.82423177]
[1736187469368,2.22,218.64,218.6,8.82423177]
[1736187469574,2.22,218.64,218.56,1.6463]
[1736187469770,2.22,218.64,218.6,8.82423177]
[1736187471776,2.2,218.63,218.6,8.82423177]
[1736187472072,8.82423177,218.67,218.6,8.82423177]
[1736187472252,2.2,218.64,218.6,8.82423177]
[1736187473346,2.2,218.64,218.58,8.82423177]
[1736187473658,8.82423177,218.63,218.56,8.82423177]
[1736187474879,8.82423177,218.62,218.55,8.82423177]
[1736187475574,8.82423177,218.62,218.54,20.0]
[1736187475884,8.82423177,218.61,218.54,28.82423177]
[1736187476060,8.82423177,218.58,218.51,1.5307]
[1736187476249,8.82423177,218.58,218.52,8.82423177]
[1736187476856,2.2,218.64,218.54,8.82423177]
[1736187477052,8.82423177,218.63,218.56,8.82423177]
[1736187477450,11.02423177,218.64,218.57,8.82423177]
[1736187479366,8.97113111,218.68,218.6,8.82423177]
[1736187479668,2.2,218.66,218.6,8.82423177]
[1736187479970,11.02423177,218.66,218.59,8.82423177]
[1736187480374,8.82423177,218.66,218.59,8.82423177]
[1736187480562,2.2,218.65,218.59,8.82423177]
[1736187480763,1.7,218.65,218.61,8.82423177]
[1736187481295,1.7,218.65,218.62,8.82423177]
[1736187481965,2.2,218.65,218.61,8.82423177]
[1736187482673,8.97113111,218.68,218.63,8.82423177]
[1736187482873,8.97113111,218.68,218.64,8.82423177]
[1736187482874,2.2,218.67,218.64,8.82423177]
[1736187483093,2.2,218.67,218.63,8.82423177]
[1736187483274,11.17113111,218.68,218.63,8.82423177]
[1736187486673,8.82423177,218.66,218.6,8.82423177]
[1736187486880,8.82423177,218.66,218.59,8.82423177]
[1736187487205,8.82423177,218.67,218.6,8.82423177]
[1736187487705,11.17113111,218.68,218.57,8.82423177]
[1736187487706,8.82423177,218.64,218.57,8.82423177]
[1736187488205,8.82423177,218.64,218.58,8.82423177]
[1736187488373,8.82423177,218.65,218.58,8.82423177]
[1736187488573,8.82423177,218.65,218.59,8.82423177]
[1736187489905,19.99536288,218.68,218.61,8.82423177]
[1736187490274,8.82423177,218.66,218.59,8.82423177]
[1736187490605,8.82423177,218.67,218.6,8.82423177]
[1736187490791,8.97113111,218.68,218.61,8.82423177]
[1736187490999,2.2,218.66,218.61,8.82423177]
[1736187491999,2.2,218.66,218.62,8.82423177]
[1736187492377,2.2,218.66,218.63,8.82423177]
[1736187492592,8.97113111,218.68,218.64,8.82423177]
[1736187492809,2.2,218.67,218.64,8.82423177]
[1736187492993,2.2,218.66,218.62,8.82423177]
[1736187493981,2.2,218.66,218.61,8.82423177]
[1736187497016,2.2,218.66,218.6,8.82423177]
[1736187497194,2.2,218.66,218.61,8.82423177]
[1736187497390,2.2,218.66,218.6,8.82423177]
[1736187497604,11.02423177,218.66,218.59,8.82423177]
[1736187498126,2.2,218.66,218.6,8.82423177]
[1736187498916,11.02423177,218.66,218.59,8.82423177]
[1736187500081,2.2,218.66,218.6,8.82423177]
[1736187500276,2.2,218.66,218.63,8.82423177]
[1736187500476,8.97113111,218.68,218.65,8.82423177]
[1736187500707,8.97113111,218.68,218.67,8.82423177]
[1736187502485,2.2,218.72,218.67,8.82423177]
[1736187502699,2.2,218.72,218.69,8.82423177]
[1736187502915,23.94023889,218.82,218.71,8.82423177]
[1736187503114,23.94023889,218.82,218.77,8.82423177]
[1736187503115,2.2,218.81,218.77,8.82423177]
[1736187503292,10.20474522,218.82,218.77,8.82423177]
[1736187503489,2.2,218.81,218.77,8.82423177]
[1736187503687,8.60209367,218.83,218.78,8.82423177]
[1736187503920,2.2,218.82,218.8,8.82423177]
[1736187504493,2.2,218.82,218.78,8.82423177]
[1736187505027,2.2,218.82,218.77,8.82423177]
[1736187506995,2.2,218.82,218.76,8.82423177]
[1736187507391,8.82423177,218.81,218.75,8.82423177]
[1736187507691,8.82423177,218.79,218.73,8.82423177]
[1736187507903,8.82423177,218.8,218.73,8.82423177]
[1736187508587,8.82423177,218.79,218.69,1.6497]
[1736187508917,8.82423177,218.79,218.72,8.82423177]
[1736187509086,8.82423177,218.78,218.72,8.82423177]
[1736187512527,8.82423177,218.77,218.69,1.6497]
[1736187512822,8.82423177,218.77,218.7,8.82423177]
[1736187513219,8.82423177,218.77,218.71,8.82423177]
[1736187513414,8.82423177,218.78,218.71,8.82423177]
[1736187514836,2.2,218.77,218.71,8.82423177]
[1736187516727,8.82423177,218.76,218.69,8.82423177]
[1736187516936,8.82423177,218.75,218.68,8.82423177]
[1736187517304,8.82423177,218.76,218.7,8.82423177]
[1736187517724,8.82423177,218.76,218.69,8.82423177]
[1736187518033,8.82423177,218.75,218.69,8.82423177]
[1736187521230,8.82423177,218.76,218.69,8.82423177]
[1736187523759,8.82423177,218.76,218.7,8.82423177]
[1736187524123,11.02423177,218.77,218.71,8.82423177]
[1736187524330,2.2,218.77,218.72,8.82423177]
[1736187526750,11.02423177,218.77,218.7,8.82423177]
[1736187529858,8.82423177,218.76,218.7,8.82423177]
[1736187530027,8.82423177,218.74,218.68,8.82423177]
[1736187531876,8.82423177,218.72,218.64,1.6304]
[1736187532049,8.82423177,218.72,218.66,8.82423177]
[1736187532251,2.2,218.77,218.61,11.4357]
[1736187532252,8.82423177,218.71,218.65,8.82423177]
[1736187532454,8.82423177,218.72,218.66,8.82423177]
[1736187533476,8.82423177,218.73,218.67,8.82423177]
[1736187533782,8.82423177,218.74,218.67,8.82423177]
[1736187534185,2.2,218.77,218.69,8.82423177]
[1736187534355,2.2,218.77,218.72,8.82423177]
[1736187535363,2.2,218.76,218.72,8.82423177]
[1736187536379,8.82423177,218.73,218.65,11.4337]
[1736187536676,8.82423177,218.73,218.65,8.82423177]
[1736187537861,8.82423177,218.73,218.66,8.82423177]
[1736187538467,8.82423177,218.72,218.65,28.82423177]
[1736187539380,8.82423177,218.72,218.65,8.82423177]
[1736187540384,8.82423177,218.73,218.66,8.82423177]
[1736187540761,8.82423177,218.73,218.65,8.82423177]
[1736187542650,8.82423177,218.73,218.66,8.82423177]
[1736187543854,8.82423177,218.73,218.62,11.4353]
[1736187543855,8.82423177,218.7,218.64,8.82423177]
[1736187544156,8.82423177,218.67,218.59,13.0317]
[1736187544358,2.2,218.67,218.62,8.82423177]
[1736187544584,2.2,218.67,218.63,8.82423177]
[1736187545482,2.2,218.67,218.64,8.82423177]
[1736187545667,2.2,218.67,218.65,8.82423177]
[1736187546084,2.2,218.67,218.66,8.82423177]
[1736187548088,2.2,218.67,218.65,8.82423177]
[1736187548885,2.2,218.67,218.61,11.4354]
[1736187548886,2.2,218.67,218.64,8.82423177]
[1736187549463,2.2,218.67,218.65,8.82423177]
[1736187549879,2.2,218.67,218.66,8.82423177]
[1736187550263,25.306984,218.75,218.66,8.82423177]
[1736187550264,2.2,218.7,218.66,8.82423177]
[1736187550459,2.2,218.7,218.67,8.82423177]
[1736187550672,2.2,218.7,218.68,8.82423177]
[1736187550874,2.2,218.72,218.69,8.82423177]
[1736187552990,22.29376619,218.73,218.69,8.82423177]
[1736187554060,24.49376619,218.73,218.69,8.82423177]
[1736187554992,24.49376619,218.73,218.68,8.82423177]
[1736187555493,24.49376619,218.73,218.64,11.4339]
[1736187555668,24.49376619,218.73,218.68,8.82423177]
[1736187557494,33.31799796,218.73,218.6,7.84221057]
[1736187557683,33.31799796,218.73,218.66,8.82423177]
[1736187557881,33.31799796,218.73,218.64,20.0]
[1736187558081,33.31799796,218.73,218.66,8.82423177]
[1736187559903,33.31799796,218.73,218.67,8.82423177]
[1736187562011,22.29376619,218.73,218.67,8.82423177]
[1736187562180,2.2,218.72,218.67,8.82423177]
[1736187564109,2.2,218.72,218.66,8.82423177]
[1736187564695,8.82423177,218.7,218.61,11.4357]
[1736187564922,8.82423177,218.7,218.63,8.82423177]
[1736187567209,8.82423177,218.7,218.61,11.4357]
[1736187567419,8.82423177,218.7,218.63,8.82423177]
[1736187567786,8.82423177,218.7,218.64,8.82423177]
[1736187567981,8.82423177,218.71,218.65,8.82423177]
[1736187568183,2.2,218.72,218.66,8.82423177]
[1736187568596,2.2,218.72,218.67,8.82423177]
[1736187568806,2.2,218.72,218.66,8.82423177]
[1736187569524,11.02423177,218.72,218.65,8.82423177]
[1736187570821,2.2,218.72,218.65,8.82423177]
[1736187571019,2.2,218.72,218.66,8.82423177]
[1736187574335,2.2,218.72,218.67,8.82423177]
[1736187574512,2.2,218.72,218.69,8.82423177]
[1736187575411,2.2,218.72,218.68,8.82423177]
[1736187576527,2.2,218.72,218.67,8.82423177]
[1736187577522,24.49376619,218.73,218.68,8.82423177]
[1736187578023,22.29376619,218.73,218.68,8.82423177]
[1736187578197,24.49376619,218.73,218.68,8.82423177]
[1736187579824,24.49376619,218.73,218.67,8.82423177]
[1736187582006,24.49376619,218.73,218.7,8.82423177]
[1736187582007,22.29376619,218.73,218.7,8.82423177]
[1736187584832,22.29376619,218.73,218.69,8.82423177]
[1736187586004,22.29376619,218.73,218.7,8.82423177]
[1736187586434,21.79376619,218.73,218.7,8.82423177]
[1736187588232,21.79376619,218.73,218.69,8.82423177]
[1736187589037,21.79376619,218.73,218.7,8.82423177]
[1736187589219,21.79376619,218.73,218.65,23.776884]
[1736187589220,21.79376619,218.73,218.72,8.82423177]
[1736187591351,21.79376619,218.73,218.72,43.776884]
[1736187591639,21.79376619,218.73,218.72,52.60111577]
[1736187596240,21.79376619,218.73,218.72,20.0]
[1736187596419,21.79376619,218.73,218.72,28.82423177]
[1736187598649,1.519,218.86,218.76,20.0]
[1736187598828,2.2,218.87,218.83,8.82423177]
[1736187600346,2.2,218.87,218.82,8.82423177]
[1736187603622,2.2,218.87,218.83,8.82423177]
[1736187605031,2.2,218.89,218.86,8.82423177]
[1736187605240,2.2,218.9,218.87,8.82423177]
[1736187606318,2.2,218.9,218.86,8.82423177]
[1736187607551,8.82423177,218.92,218.86,8.82423177]
[1736187607753,2.2,218.9,218.86,8.82423177]
[1736187609455,2.2,218.94,218.89,8.82423177]
[1736187609656,2.2,218.95,218.89,8.82423177]
[1736187609966,2.2,218.95,218.92,8.82423177]
[1736187610133,15.13665399,219.06,218.94,8.82423177]
[1736187610134,10.13665399,219.06,218.94,8.82423177]
[1736187610340,8.82423177,219.02,218.95,8.82423177]
[1736187611153,8.82423177,219.03,218.96,8.82423177]
[1736187611461,2.2,219.02,218.96,8.82423177]
[1736187611958,2.2,219.02,218.99,8.82423177]
[1736187612260,1.5971,219.07,219.01,8.82423177]
[1736187612434,2.2,219.07,219.02,8.82423177]
[1736187612630,2.2,219.07,219.03,8.82423177]
[1736187612938,8.82423177,219.11,219.04,8.82423177]
[1736187613127,8.82423177,219.09,218.95,23.776884]
[1736187613333,8.82423177,219.08,219.01,8.82423177]
[1736187614563,8.82423177,219.08,219.02,8.82423177]
[1736187614862,8.82423177,219.08,219.01,8.82423177]
[1736187615435,8.82423177,219.08,218.94,23.776884]
[1736187615436,8.82423177,219.08,219.02,8.82423177]
[1736187616034,31.02423177,219.1,219.03,8.82423177]
[1736187616235,2.2,219.1,219.04,8.82423177]
[1736187617246,8.82423177,219.11,219.05,8.82423177]
[1736187617247,11.02423177,219.11,219.05,8.82423177]
[1736187617564,8.82423177,219.09,219.03,8.82423177]
[1736187617978,8.82423177,219.07,219.0,8.82423177]
[1736187619662,8.82423177,219.03,218.94,1.6239]
[1736187619975,8.82423177,218.96,218.9,8.82423177]
[1736187620153,8.82423177,218.97,218.91,8.82423177]
[1736187620336,11.02423177,218.98,218.91,8.82423177]
[1736187620863,2.2,218.98,218.91,8.82423177]
[1736187621167,15.97673363,218.98,218.91,13.77673363]
[1736187622268,2.2,218.98,218.92,13.77673363]
[1736187623648,15.97673363,218.98,218.92,13.77673363]
[1736187625019,13.77673363,218.96,218.89,13.77673363]
[1736187625280,13.77673363,218.97,218.9,13.77673363]
[1736187625660,15.97673363,218.98,218.91,13.77673363]
[1736187625861,20.0,219.01,218.9,11.4207]
[1736187626057,2.18,219.0,218.94,13.77673363]
[1736187626576,33.77673363,219.01,218.94,13.77673363]
[1736187626783,2.18,219.0,218.94,13.77673363]
[1736187627075,15.95673363,219.0,218.93,13.77673363]
[1736187627568,13.77673363,218.96,218.9,33.77673363]
[1736187627784,13.77673363,218.94,218.88,13.77673363]
[1736187627965,3.7985,219.0,218.89,13.77673363]
[1736187627966,13.77673363,218.96,218.89,13.77673363]
[1736187628280,2.18,218.95,218.9,13.77673363]
[1736187628490,2.18,218.95,218.89,13.77673363]
[1736187630475,2.18,218.95,218.9,13.77673363]
[1736187632879,2.18,218.95,218.89,13.77673363]
[1736187633553,2.18,218.95,218.91,13.77673363]
[1736187633759,2.18,218.95,218.93,13.77673363]
[1736187634081,2.18,218.95,218.91,13.77673363]
[1736187634299,2.18,218.95,218.92,13.77673363]
[1736187635378,2.18,218.95,218.93,13.77673363]
[1736187635586,2.18,218.96,218.93,13.77673363]
[1736187636287,2.18,218.96,218.94,13.77673363]
[1736187636962,2.18,218.96,218.88,23.776884]
[1736187636963,2.18,218.96,218.91,13.77673363]
[1736187637279,2.18,218.96,218.92,13.77673363]
[1736187637968,2.18,218.96,218.91,13.77673363]
[1736187638290,2.18,218.96,218.92,13.77673363]
[1736187638663,2.18,218.96,218.91,13.77673363]
[1736187639064,2.18,218.96,218.92,13.77673363]
[1736187639663,13.77673363,219.01,218.93,13.77673363]
[1736187639859,2.18,219.0,218.94,13.77673363]
[1736187640065,2.18,219.0,218.95,13.77673363]
[1736187640371,13.77673363,219.02,218.95,13.77673363]
[1736187640584,2.18,218.99,218.95,13.77673363]
[1736187640762,2.18,218.99,218.94,13.77673363]
[1736187640964,2.18,218.99,218.94,8.81472558]
[1736187641769,2.18,218.99,218.93,8.81472558]
[1736187642091,10.99472558,218.99,218.92,8.81472558]
[1736187643100,2.18,218.99,218.92,8.81472558]
[1736187643397,10.99472558,218.99,218.92,8.81472558]
[1736187643805,8.81472558,218.98,218.91,8.81472558]
[1736187644115,8.81472558,218.98,218.82,6.79483581]
[1736187644116,8.81472558,218.96,218.89,8.81472558]
[1736187644478,2.18,218.99,218.88,8.81472558]
[1736187644479,8.81472558,218.95,218.88,8.81472558]
[1736187646907,8.81472558,218.94,218.88,8.81472558]
[1736187647287,8.81472558,218.95,218.88,8.81472558]
[1736187647706,10.41192558,218.97,218.9,8.81472558]
[1736187648314,1.5972,218.97,218.91,8.81472558]
[1736187648487,2.18,218.96,218.92,8.81472558]
[1736187648686,2.18,218.96,218.91,8.81472558]
[1736187651111,2.18,218.96,218.9,8.81472558]
[1736187654486,2.18,218.96,218.91,8.81472558]
[1736187655420,8.81472558,218.98,218.91,8.81472558]
[1736187655714,2.18,218.95,218.91,8.81472558]
[1736187656220,2.18,218.95,218.93,8.81472558]
[1736187658783,2.18,218.95,218.91,8.81472558]
[1736187659687,2.18,218.95,218.9,8.81472558]
[1736187659914,8.81472558,218.94,218.88,8.81472558]
[1736187660220,8.81472558,218.93,218.86,8.81472558]
[1736187660418,8.81472558,218.9,218.84,8.81472558]
[1736187660593,8.81472558,218.9,218.83,1.6044]
[1736187660594,8.81472558,218.9,218.83,8.81472558]
[1736187661092,8.81472558,218.9,218.84,8.81472558]
[1736187661293,8.81472558,218.91,218.85,8.81472558]
[1736187662022,8.81472558,218.9,218.8,11.4258]
[1736187662216,1.5237,218.94,218.85,8.81472558]
[1736187662217,8.81472558,218.92,218.85,8.81472558]
[1736187662425,8.81472558,218.93,218.86,8.81472558]
[1736187662925,8.81472558,218.93,218.8,11.4258]
[1736187662926,10.33842558,218.94,218.87,8.81472558]
[1736187663495,8.81472558,218.93,218.86,8.81472558]
[1736187664522,8.81472558,218.92,218.86,8.81472558]
[1736187664825,8.81472558,218.93,218.86,8.81472558]
[1736187665625,8.81472558,218.92,218.86,8.81472558]
[1736187666912,22.18,218.95,218.87,8.81472558]
[1736187667119,30.99472558,218.95,218.89,8.81472558]
[1736187667284,30.99472558,218.95,218.88,8.81472558]
[1736187668118,8.81472558,218.91,218.84,8.81472558]
[1736187668625,8.81472558,218.92,218.85,8.81472558]
[1736187671822,8.81472558,218.91,218.85,8.81472558]
[1736187672024,8.81472558,218.9,218.84,8.81472558]
[1736187672222,8.81472558,218.88,218.77,13.65221342]
[1736187672540,2.18,218.87,218.81,8.81472558]
[1736187673195,2.18,218.87,218.82,8.81472558]
[1736187674928,2.18,218.87,218.83,8.81472558]
[1736187675119,2.18,218.87,218.84,8.81472558]
[1736187676824,2.18,218.87,218.83,8.81472558]
[1736187677328,2.18,218.87,218.82,8.81472558]
[1736187677940,2.18,218.87,218.83,8.81472558]
[1736187678837,2.18,218.87,218.81,8.81472558]
[1736187679133,2.18,218.87,218.82,8.81472558]
[1736187679334,2.18,218.87,218.83,8.81472558]
[1736187680930,2.18,218.87,218.8,20.0]
[1736187681138,2.18,218.87,218.8,8.81472558]
[1736187681139,10.99472558,218.87,218.8,8.81472558]
[1736187681366,8.81472558,218.86,218.8,8.81472558]
[1736187682562,2.18,218.87,218.78,1.5435]
[1736187682563,2.18,218.87,218.81,8.81472558]
[1736187684669,10.99472558,218.87,218.8,8.81472558]
[1736187684840,2.18,218.87,218.81,8.81472558]
[1736187685043,10.99472558,218.87,218.8,8.81472558]
[1736187687354,10.99472558,218.87,218.78,1.5435]
[1736187687355,8.81472558,218.85,218.79,8.81472558]
[1736187687548,8.81472558,218.86,218.79,8.81472558]
[1736187687949,10.99472558,218.87,218.8,8.81472558]
[1736187689435,10.99472558,218.87,218.81,8.81472558]
[1736187690361,10.99472558,218.87,218.8,8.81472558]
[1736187690657,10.99472558,218.87,218.81,8.81472558]
[1736187690851,10.99472558,218.87,218.82,8.81472558]
[1736187690852,2.18,218.87,218.82,8.81472558]
[1736187691238,10.99472558,218.87,218.81,8.81472558]
[1736187692762,2.18,218.87,218.81,8.81472558]
[1736187693067,8.0782,218.95,218.86,8.81472558]
[1736187693362,1.5503,218.95,218.9,8.81472558]
[1736187693572,2.18,218.94,218.93,8.81472558]
[1736187695159,20.0,218.97,218.93,8.81472558]
[1736187695359,2.18,218.96,218.92,8.81472558]
[1736187695960,6.5279,219.0,218.94,8.81472558]
[1736187696142,2.18,218.99,218.95,8.81472558]
[1736187697274,2.18,218.98,218.95,8.81472558]
[1736187699042,2.18,218.98,218.94,8.81472558]
[1736187699862,1.6313,219.01,218.95,8.81472558]
[1736187700094,6.1039,219.05,218.97,8.81472558]
[1736187700095,2.18,219.0,218.97,8.81472558]
[1736187700874,2.18,219.0,218.99,8.81472558]
[1736187701061,2.18,219.02,218.99,8.81472558]
[1736187701366,2.18,219.05,219.01,8.81472558]
[1736187702239,8.81472558,219.08,219.02,8.81472558]
[1736187702438,2.18,219.07,219.02,8.81472558]
[1736187702966,2.18,219.06,219.03,8.81472558]
[1736187703352,2.18,219.07,219.05,8.81472558]
[1736187703660,2.18,219.07,219.04,8.81472558]
[1736187704063,8.81472558,219.1,219.03,8.81472558]
[1736187704272,8.81472558,219.06,218.96,8.2584]
[1736187704445,8.81472558,219.05,218.96,1.6654]
[1736187704647,8.81472558,219.04,218.97,8.81472558]
[1736187704950,23.776884,219.07,218.99,8.81472558]
[1736187704951,8.81472558,219.06,218.99,8.81472558]
[1736187706680,8.81472558,219.05,218.98,8.81472558]
[1736187708086,28.81472558,219.09,219.02,8.81472558]
[1736187708390,2.18,219.08,219.03,8.81472558]
[1736187708750,2.18,219.08,219.02,8.81472558]
[1736187710583,10.99472558,219.08,219.01,8.81472558]
[1736187712888,2.18,219.08,219.03,8.81472558]
[1736187713265,8.81472558,219.1,219.03,8.81472558]
[1736187713465,2.18,219.09,219.03,8.81472558]
[1736187713995,10.99472558,219.09,219.03,8.81472558]
[1736187717997,8.81472558,219.09,219.03,8.81472558]
[1736187718201,2.18,219.08,219.03,8.81472558]
[1736187718805,6.2266,219.16,219.07,8.81472558]
[1736187719021,2.18,219.15,219.11,8.81472558]
[1736187719326,2.18,219.15,219.04,21.5613]
[1736187719327,2.18,219.15,219.09,8.81472558]
[1736187719503,10.99472558,219.15,219.04,21.5613]
[1736187719824,8.81472558,219.12,219.05,8.81472558]
[1736187720713,8.81472558,219.1,219.04,8.81472558]